bitfinex-derivatives/quotes_SOLF0:USTF0_20260306
["timestamp","ask_amount","ask_price","bid_price","bid_amount"]
[1772773645563,3.00336477,88.04,87.985,3.9193562]
[1772773646071,3.00336477,88.05,88.001,3.9193562]
[1772773647579,3.00336477,88.05,88.005,3.9193562]
[1772773648069,3.00336477,88.06,88.011,3.9193562]
[1772773648376,3.98416545,88.069,88.021,3.9193562]
[1772773649369,3.98416545,88.069,88.026,10.223]
[1772773649567,3.98416545,88.069,88.027,3.90134924]
[1772773652075,3.00336477,88.08,88.027,3.90134924]
[1772773652578,3.00336477,88.07,88.027,3.90134924]
[1772773653577,3.00336477,88.07,88.029,10.223]
[1772773657078,6.70042614,88.07,88.029,10.223]
[1772773661980,10.219,88.064,88.027,3.90134924]
[1772773662481,3.69706137,88.059,88.013,3.78797564]
[1772773662782,3.00336477,88.05,88.013,3.78797564]
[1772773664376,13.22436477,88.05,88.013,3.78797564]
[1772773664882,3.69706137,88.039,87.981,3.78797564]
[1772773665072,10.223,88.029,87.983,3.78797564]
[1772773665273,3.69706137,88.019,87.971,3.78797564]
[1772773665482,3.00336477,88.03,87.971,3.78797564]
[1772773665782,3.00336477,88.03,87.97,3.00336477]
[1772773665783,3.69706137,88.032,87.982,3.78797564]
[1772773666481,3.69706137,88.032,87.984,3.78797564]
[1772773667371,3.69706137,88.032,87.98,3.00336477]
[1772773667372,3.69706137,88.032,87.986,3.78797564]
[1772773668083,3.69706137,88.029,87.986,3.78797564]
[1772773670182,10.223,88.028,87.986,3.78797564]
[1772773670486,3.00336477,88.03,87.986,3.78797564]
[1772773671590,3.00336477,88.03,87.989,3.78797564]
[1772773671889,3.69706137,88.019,87.971,3.78797564]
[1772773673387,3.69706137,88.019,87.983,10.228]
[1772773676886,3.69706137,88.019,87.973,3.78797564]
[1772773677984,13.92106137,88.019,87.973,3.78797564]
[1772773678388,13.92106137,88.019,87.972,10.229]
[1772773678389,3.00336477,87.99,87.937,10.234]
[1772773678687,3.00336477,87.98,87.873,159.311]
[1772773678886,3.00336477,87.97,87.92,3.00336477]
[1772773679191,3.00336477,87.97,87.918,10.236]
[1772773679192,3.69706137,87.969,87.918,10.236]
[1772773679388,3.00336477,87.95,87.897,1.97858804]
[1772773679588,3.00336477,87.95,87.89,3.00336477]
[1772773680492,3.00336477,87.95,87.891,3.78178579]
[1772773680791,3.00336477,87.95,87.907,3.78178579]
[1772773681291,3.69706137,87.956,87.907,3.78178579]
[1772773681493,3.00336477,87.95,87.907,3.78178579]
[1772773681690,3.86684556,87.949,87.907,3.78178579]
[1772773681891,3.00336477,87.94,87.881,3.78178579]
[1772773682088,3.00336477,87.95,87.903,3.78178579]
[1772773682389,3.00336477,87.96,87.903,3.78178579]
[1772773682591,3.00336477,87.97,87.922,3.78178579]
[1772773682992,3.86684556,87.978,87.931,3.78178579]
[1772773683293,3.00336477,87.99,87.937,3.78178579]
[1772773683489,3.00336477,87.98,87.937,3.78178579]
[1772773684389,3.00336477,87.98,87.939,10.233]
[1772773684594,3.00336477,87.98,87.94,3.78178579]
[1772773686194,3.86684556,87.989,87.94,3.78178579]
[1772773687094,3.86684556,87.979,87.927,3.78178579]
[1772773687390,3.00336477,87.96,87.919,10.236]
[1772773687584,3.00336477,87.95,87.913,3.78178579]
[1772773687895,3.86684556,87.973,87.921,3.78178579]
[1772773688194,3.00336477,87.97,87.921,3.78178579]
[1772773689100,3.86684556,87.973,87.921,3.78178579]
[1772773690398,3.86684556,87.973,87.923,3.78178579]
[1772773690993,3.86684556,87.973,87.924,10.235]
[1772773691196,3.86684556,87.973,87.93,3.00336477]
[1772773692100,3.86684556,87.973,87.928,10.235]
[1772773692294,3.86684556,87.973,87.925,3.78178579]
[1772773692492,3.86684556,87.973,87.93,3.00336477]
[1772773692696,3.86684556,87.973,87.934,10.234]
[1772773695906,3.86684556,87.973,87.93,3.00336477]
[1772773696906,3.86684556,87.973,87.922,10.235]
[1772773697607,3.86684556,87.97,87.92,6.78515056]
[1772773697801,3.86684556,87.97,87.921,3.78178579]
[1772773698208,3.86684556,87.97,87.931,3.78178579]
[1772773698407,20.448,88.02,87.879,20.481]
[1772773698408,3.86684556,87.983,87.941,3.78178579]
[1772773700407,3.00336477,87.99,87.934,10.234]
[1772773700408,3.86684556,87.981,87.934,10.234]
[1772773700711,3.86684556,87.981,87.928,3.78178579]
[1772773701006,3.86684556,87.978,87.931,3.78178579]
[1772773702211,3.86684556,87.978,87.94,3.00336477]
[1772773702607,3.00686892,87.99,87.941,3.78178579]
[1772773702808,3.86684556,87.989,87.941,3.78178579]
[1772773703407,3.86684556,87.989,87.942,10.233]
[1772773704512,3.86684556,87.989,87.941,3.78178579]
[1772773704913,3.86684556,87.986,87.934,10.234]
[1772773705311,3.86684556,87.999,87.946,3.78178579]
[1772773705512,3.86684556,87.996,87.946,3.78178579]
[1772773706013,3.86684556,87.996,87.901,20.476]
[1772773706014,3.86684556,87.989,87.933,3.78178579]
[1772773706512,3.86684556,87.985,87.933,3.78178579]
[1772773707013,3.86684556,87.979,87.933,3.78178579]
[1772773708405,3.86684556,87.976,87.934,10.234]
[1772773708610,3.86684556,87.976,87.933,3.78178579]
[1772773710615,10.228,87.985,87.935,3.99728461]
[1772773710910,10.228,87.985,87.941,3.99728461]
[1772773711112,3.78912477,87.99,87.941,3.99728461]
[1772773711615,3.78912477,87.99,87.944,3.99728461]
[1772773711811,3.78912477,88.009,87.951,3.99728461]
[1772773712512,3.78912477,87.999,87.951,3.99728461]
[1772773713412,10.227,87.993,87.951,3.99728461]
[1772773714513,3.78912477,87.999,87.951,3.99728461]
[1772773716918,3.78912477,87.997,87.951,3.99728461]
[1772773717718,3.78912477,87.995,87.95,3.00686892]
[1772773717918,3.78912477,87.979,87.932,10.234]
[1772773720121,3.78912477,87.979,87.938,10.233]
[1772773721022,3.00686892,87.99,87.941,3.99728461]
[1772773722021,10.228,87.988,87.945,3.99728461]
[1772773722216,14.01712477,87.988,87.945,3.99728461]
[1772773723012,3.78912477,87.969,87.911,3.99728461]
[1772773723522,10.23,87.966,87.913,10.236]
[1772773723823,3.78912477,87.969,87.914,3.99728461]
[1772773724714,3.78912477,87.959,87.914,3.99728461]
[1772773724917,3.78912477,87.949,87.901,3.99728461]
[1772773725622,3.78912477,87.939,87.901,3.99728461]
[1772773726418,3.00686892,87.95,87.901,3.99728461]
[1772773727312,3.00686892,87.95,87.902,3.99728461]
[1772773727518,3.78912477,87.952,87.902,3.99728461]
[1772773728223,3.78912477,87.952,87.905,3.99728461]
[1772773728519,3.78912477,87.952,87.857,1.97929138]
[1772773728520,3.00686892,87.97,87.911,3.99728461]
[1772773728719,3.00686892,87.97,87.921,3.99728461]
[1772773729424,3.78912477,87.969,87.921,3.99728461]
[1772773731427,3.78912477,87.959,87.914,10.236]
[1772773731923,3.78912477,87.959,87.915,3.99728461]
[1772773733921,3.78912477,87.959,87.9,3.00686892]
[1772773734124,3.78912477,87.929,87.882,3.99728461]
[1772773735124,3.00686892,87.92,87.882,3.99728461]
[1772773737118,3.00686892,87.92,87.882,14.23728461]
[1772773737418,3.78912477,87.929,87.882,14.23728461]
[1772773737622,3.78912477,87.929,87.883,3.99728461]
[1772773738826,10.235,87.928,87.883,3.99728461]
[1772773739718,3.78912477,87.927,87.883,3.99728461]
[1772773740426,3.67435571,87.949,87.891,3.9004572]
[1772773740617,3.00686892,87.94,87.891,3.9004572]
[1772773740821,3.67435571,87.929,87.877,3.9004572]
[1772773742029,3.67435571,87.926,87.878,10.24]
[1772773744026,3.67435571,87.926,87.881,3.9004572]
[1772773744231,3.67435571,87.926,87.87,3.00686892]
[1772773744232,3.00686892,87.94,87.891,3.9004572]
[1772773744425,3.67435571,87.943,87.891,3.9004572]
[1772773744731,3.67435571,87.943,87.894,3.9004572]
[1772773745030,3.67435571,87.943,87.847,1.97962353]
[1772773745031,3.67435571,87.957,87.901,3.9004572]
[1772773745531,3.00686892,87.94,87.901,3.9004572]
[1772773746632,3.67435571,87.948,87.901,3.9004572]
[1772773747531,3.00686892,87.94,87.901,3.9004572]
[1772773748730,3.67435571,87.939,87.888,14.1394572]
[1772773749722,13.90735571,87.939,87.894,10.239]
[1772773749930,3.67435571,87.939,87.895,3.9004572]
[1772773751534,10.232,87.948,87.895,3.9004572]
[1772773752233,10.232,87.948,87.898,3.9004572]
[1772773752424,10.232,87.948,87.901,3.9004572]
[1772773753729,3.67435571,87.952,87.903,3.9004572]
[1772773755529,3.67435571,87.952,87.912,10.236]
[1772773755730,3.67435571,87.965,87.913,3.9004572]
[1772773756428,3.67435571,87.965,87.921,3.9004572]
[1772773758024,3.67435571,87.965,87.922,14.1354572]
[1772773758228,3.67435571,87.965,87.922,3.9004572]
[1772773758828,10.231,87.962,87.922,3.9004572]
[1772773759735,3.67435571,87.965,87.922,3.9004572]
[1772773760240,3.67435571,87.966,87.924,3.9004572]
[1772773760536,6.68122463,87.96,87.911,3.9004572]
[1772773760733,3.67435571,87.959,87.911,3.9004572]
[1772773761531,3.67435571,87.982,87.931,3.9004572]
[1772773761732,3.67435571,87.989,87.931,3.9004572]
[1772773763533,3.67435571,87.988,87.936,3.9004572]
[1772773764235,3.67435571,87.985,87.936,3.9004572]
[1772773764435,3.00715908,87.98,87.936,3.9004572]
[1772773764934,3.67435571,87.985,87.936,3.9004572]
[1772773765434,3.67435571,87.985,87.939,3.9004572]
[1772773765830,10.227,87.997,87.941,3.9004572]
[1772773766134,13.90135571,87.997,87.943,3.9004572]
[1772773766336,3.67435571,87.997,87.951,3.9004572]
[1772773767134,3.67435571,87.997,87.89,20.479]
[1772773767135,3.67435571,88.011,87.961,3.9004572]
[1772773768641,3.67435571,88.011,87.962,3.9004572]
[1772773769735,3.87741724,88.008,87.962,3.9004572]
[1772773771341,10.225,88.007,87.962,3.9004572]
[1772773771841,13.98703418,88.007,87.962,3.9004572]
[1772773773145,3.76203418,87.979,87.926,3.61802557]
[1772773773341,3.76203418,87.979,87.93,3.00715908]
[1772773773639,3.76203418,87.979,87.931,3.61802557]
[1772773773843,3.76203418,87.979,87.935,3.61802557]
[1772773775941,3.76203418,87.979,87.925,10.235]
[1772773776146,3.76203418,87.969,87.923,3.61802557]
[1772773776445,3.76203418,87.969,87.924,3.61802557]
[1772773777240,3.00715908,87.98,87.926,3.61802557]
[1772773777448,3.76203418,87.984,87.931,3.61802557]
[1772773778446,3.76203418,87.984,87.937,3.61802557]
[1772773779343,3.00715908,87.99,87.937,3.61802557]
[1772773779344,3.76203418,87.982,87.937,3.61802557]
[1772773779545,159.002,88.045,87.925,10.235]
[1772773779546,3.76203418,87.979,87.926,3.61802557]
[1772773780448,3.00715908,87.98,87.926,3.61802557]
[1772773780449,3.76203418,87.977,87.926,3.61802557]
[1772773781343,3.00715908,87.98,87.928,3.61802557]
[1772773781547,3.76203418,87.997,87.951,3.61802557]
[1772773783951,3.76203418,88.011,87.961,3.61802557]
[1772773784148,10.224,88.017,87.971,3.61802557]
[1772773784453,3.76203418,88.025,87.971,3.61802557]
[1772773785454,3.76203418,88.025,87.972,3.61802557]
[1772773787350,13.98603418,88.023,87.972,3.61802557]
[1772773788059,10.224,88.02,87.972,3.61802557]
[1772773790857,13.98603418,88.02,87.972,3.61802557]
[1772773791460,3.76203418,88.034,87.99,3.61802557]
[1772773791760,3.76203418,88.034,87.991,3.61802557]
[1772773793157,13.98403418,88.034,87.991,3.61802557]
[1772773794063,3.76203418,88.029,87.99,3.00715908]
[1772773794262,3.76203418,88.029,87.979,10.229]
[1772773794263,3.76203418,88.029,87.981,3.61802557]
[1772773795260,3.76203418,88.023,87.981,3.61802557]
[1772773796364,3.76203418,88.039,87.983,3.61802557]
[1772773796664,3.76203418,88.039,87.991,3.61802557]
[1772773797061,3.76203418,88.019,87.961,3.61802557]
[1772773797261,3.76203418,88.019,87.907,20.474]
[1772773797262,3.76203418,88.019,87.971,3.61802557]
[1772773797761,3.76203418,88.019,87.98,3.00715908]
[1772773798162,3.76203418,88.019,87.971,3.61802557]
[1772773798364,3.76203418,88.019,87.972,10.229]
[1772773798560,3.76203418,88.019,87.973,3.61802557]
[1772773804768,3.76203418,88.019,87.97,3.00715908]
[1772773804769,3.76203418,88.019,87.975,3.69550956]
[1772773805166,3.7815341,88.032,87.981,3.69550956]
[1772773805365,10.222,88.04,87.991,3.69550956]
[1772773805565,3.7815341,88.039,87.991,3.69550956]
[1772773808668,3.7815341,88.039,87.993,3.69550956]
[1772773810469,3.7815341,88.039,87.995,3.69550956]
[1772773811369,3.7815341,88.039,87.998,10.226]
[1772773811569,3.7815341,88.039,87.998,13.92150956]
[1772773814470,3.7815341,88.039,88.001,10.226]
[1772773815976,3.7815341,88.039,88.001,13.92150956]
[1772773821278,3.7815341,88.039,88.001,3.69550956]
[1772773822677,3.00715908,88.07,88.011,3.69550956]
[1772773822978,3.7815341,88.076,88.021,3.69550956]
[1772773823671,3.7815341,88.069,88.011,3.69550956]
[1772773823979,3.00715908,88.06,88.011,3.69550956]
[1772773824677,3.00162656,88.06,88.011,3.69550956]
[1772773825375,3.00162656,88.06,88.013,3.69550956]
[1772773826476,3.00162656,88.06,88.016,13.91950956]
[1772773826677,3.00162656,88.06,88.017,3.69550956]
[1772773826878,3.00162656,88.06,88.026,10.223]
[1772773827073,3.7815341,88.069,88.026,10.223]
[1772773828773,3.7815341,88.069,88.03,3.00162656]
[1772773829170,3.7815341,88.069,88.026,10.223]
[1772773830578,3.99582832,88.049,87.996,3.98057787]
[1772773831379,3.99582832,88.049,88.0,10.226]
[1772773832481,3.99582832,88.049,88.008,10.225]
[1772773834387,3.99582832,88.049,88.008,14.20557787]
[1772773839587,3.99582832,88.049,88.012,3.98057787]
[1772773839787,3.99582832,88.069,88.012,3.98057787]
[1772773841389,3.99582832,88.069,88.022,3.98057787]
[1772773842789,3.99582832,88.069,88.024,10.223]
[1772773843584,3.00162656,88.08,88.027,3.98057787]
[1772773843892,3.99582832,88.079,88.027,3.98057787]
[1772773844088,3.00162656,88.09,88.034,3.98057787]
[1772773844287,3.99582832,88.092,88.034,3.98057787]
[1772773844885,3.00162656,88.09,88.042,3.98057787]
[1772773845395,3.99582832,88.079,88.032,3.98057787]
[1772773846596,3.99582832,88.069,88.011,3.98057787]
[1772773847894,3.99582832,88.069,88.013,3.98057787]
[1772773848594,3.99582832,88.069,88.021,3.98057787]
[1772773851994,3.99582832,88.069,88.024,3.98057787]
[1772773852496,3.99582832,88.068,88.024,3.98057787]
[1772773853193,3.99582832,88.065,88.024,3.98057787]
[1772773853789,3.99582832,88.065,88.009,3.98057787]
[1772773853992,3.99582832,88.049,87.997,3.98057787]
[1772773854196,3.99582832,88.039,87.997,3.98057787]
[1772773854390,3.99582832,88.019,87.961,3.98057787]
[1772773854588,158.927,88.087,87.961,3.98057787]
[1772773854589,6.99745488,88.01,87.961,3.98057787]
[1772773854789,3.99582832,88.01,87.967,10.23]
[1772773855099,3.99582832,88.01,87.968,3.98057787]
[1772773855895,3.99582832,88.01,87.969,3.98057787]
[1772773856200,6.99745488,88.01,87.969,3.98057787]
[1772773860303,3.67317795,88.009,87.956,4.00204069]
[1772773861606,3.00162656,88.01,87.931,181.68]
[1772773861607,3.67317795,88.019,87.961,4.00204069]
[1772773862508,3.67317795,88.019,87.969,4.00204069]
[1772773863308,3.67317795,88.019,87.971,4.00204069]
[1772773864604,3.00162656,88.01,87.971,4.00204069]
[1772773864909,3.67317795,88.009,87.971,4.00204069]
[1772773866009,3.67317795,87.989,87.941,4.00204069]
[1772773866303,3.00162656,87.96,87.921,4.00204069]
[1772773866507,159.013,88.039,87.91,10.237]
[1772773866508,3.00162656,87.95,87.91,10.237]
[1772773867102,3.67317795,87.949,87.901,4.00204069]
[1772773867410,3.00162656,87.94,87.901,4.00204069]
[1772773868611,3.67317795,87.939,87.898,10.238]
[1772773868807,3.67317795,87.959,87.904,4.00204069]
[1772773869009,3.67317795,87.969,87.911,4.00204069]
[1772773869310,3.00162656,87.96,87.911,4.00204069]
[1772773869506,3.67317795,87.969,87.915,4.00204069]
[1772773869817,3.00162656,87.96,87.915,4.00204069]
[1772773870503,3.00162656,87.97,87.928,4.00204069]
[1772773870904,3.67317795,87.959,87.9,3.00162656]
[1772773871110,3.67317795,87.959,87.901,4.00204069]
[1772773871306,3.67317795,87.959,87.911,4.00204069]
[1772773871810,3.67317795,87.959,87.915,10.236]
[1772773872307,3.67317795,87.959,87.911,4.00204069]
[1772773873011,3.67317795,87.959,87.911,14.23904069]
[1772773873313,3.67317795,87.959,87.911,4.00204069]
[1772773876314,3.67317795,87.959,87.91,10.237]
[1772773878414,3.67317795,87.959,87.901,14.24004069]
[1772773878715,3.67317795,87.959,87.902,4.00204069]
[1772773878909,3.67317795,87.959,87.912,10.236]
[1772773879213,3.67317795,87.959,87.912,14.23804069]
[1772773885919,3.67317795,87.959,87.92,10.236]
[1772773886925,3.67317795,87.959,87.91,10.237]
[1772773887815,3.67317795,87.959,87.917,10.236]
[1772773889819,3.67317795,87.959,87.908,3.73937119]
[1772773891421,3.78846309,87.958,87.908,3.73937119]
[1772773891824,3.78846309,87.949,87.895,3.77604655]
[1772773893222,3.78846309,87.939,87.895,3.77604655]
[1772773897430,3.78846309,87.939,87.898,3.77604655]
[1772773898240,3.00882376,87.95,87.902,3.77604655]
[1772773899134,6.79728685,87.95,87.902,3.77604655]
[1772773899632,6.79728685,87.95,87.906,3.77604655]
[1772773899835,3.78846309,87.949,87.906,3.77604655]
[1772773900632,3.78846309,87.961,87.908,3.77604655]
[1772773900842,3.78846309,87.959,87.911,3.77604655]
[1772773902642,3.78846309,87.959,87.912,3.77604655]
[1772773903842,3.78846309,87.971,87.922,3.77604655]
[1772773904337,3.00882376,87.97,87.922,3.77604655]
[1772773904642,3.78846309,87.959,87.911,3.77604655]
[1772773906342,3.78846309,87.949,87.911,3.77604655]
[1772773908544,3.78846309,87.949,87.902,10.238]
[1772773908742,3.78846309,87.949,87.899,3.77604655]
[1772773909446,3.78846309,87.939,87.886,3.77604655]
[1772773910045,3.78846309,87.939,87.89,6.78487031]
[1772773910446,3.78846309,87.937,87.89,6.78487031]
[1772773910746,3.78846309,87.937,87.88,6.78487031]
[1772773910942,3.78846309,87.937,87.881,3.77604655]
[1772773911249,3.78846309,87.929,87.881,3.77604655]
[1772773911442,10.43873318,87.962,87.891,3.77604655]
[1772773911443,3.78846309,87.949,87.891,3.77604655]
[1772773911644,12.35061813,87.948,87.901,3.77604655]
[1772773911849,8.56215504,87.947,87.901,3.77604655]
[1772773912043,3.78846309,87.948,87.901,3.77604655]
[1772773912251,3.78846309,87.948,87.877,3.77604655]
[1772773912544,19.76067779,87.975,87.842,20.49]
[1772773912545,3.78846309,87.939,87.881,3.77604655]
[1772773913849,3.78846309,87.939,87.883,3.77604655]
[1772773914252,3.78846309,87.939,87.89,3.00882376]
[1772773914451,3.78846309,87.939,87.886,3.77604655]
[1772773915341,3.78846309,87.95,87.901,3.77604655]
[1772773916452,3.78846309,87.95,87.904,3.77604655]
[1772773918042,3.78846309,87.939,87.888,3.77604655]
[1772773918248,3.78846309,87.929,87.888,3.77604655]
[1772773918453,3.78846309,87.919,87.874,3.77604655]
[1772773920655,3.78846309,87.919,87.827,1.97998396]
[1772773920656,3.72924101,87.879,87.839,3.84107701]
[1772773921548,3.72924101,87.879,87.8,181.72]
[1772773921549,3.00882376,87.87,87.823,3.84107701]
[1772773921748,6.73806477,87.87,87.823,3.84107701]
[1772773922056,3.72924101,87.869,87.823,3.84107701]
[1772773922945,6.73806477,87.86,87.811,3.84107701]
[1772773923146,3.72924101,87.859,87.811,3.84107701]
[1772773923345,3.72924101,87.859,87.8,3.00882376]
[1772773923346,3.72924101,87.849,87.796,3.84107701]
[1772773923551,3.00882376,87.84,87.796,3.84107701]
[1772773923757,3.00882376,87.86,87.811,3.84107701]
[1772773924457,3.00882376,87.85,87.795,3.84107701]
[1772773925250,3.00882376,87.86,87.811,3.84107701]
[1772773925552,3.72924101,87.872,87.821,3.84107701]
[1772773927757,3.00882376,87.87,87.821,3.84107701]
[1772773928750,6.73806477,87.87,87.821,3.84107701]
[1772773928954,3.72924101,87.869,87.821,3.84107701]
[1772773929860,3.00882376,87.86,87.821,3.84107701]
[1772773930160,3.72924101,87.859,87.808,3.84107701]
[1772773930354,3.00882376,87.85,87.808,3.84107701]
[1772773930554,3.72924101,87.865,87.821,3.84107701]
[1772773931959,3.72924101,87.865,87.823,3.84107701]
[1772773932160,3.72924101,87.878,87.823,3.84107701]
[1772773933258,3.72924101,87.869,87.812,14.08907701]
[1772773933558,3.72924101,87.849,87.798,3.84107701]
[1772773933758,3.72924101,87.849,87.8,3.00882376]
[1772773934061,3.72924101,87.849,87.802,3.84107701]
[1772773934563,3.00882376,87.87,87.811,3.84107701]
[1772773934862,3.00882376,87.87,87.821,3.84107701]
[1772773935563,3.72924101,87.876,87.821,3.84107701]
[1772773936361,3.72924101,87.876,87.824,3.84107701]
[1772773937157,3.00882376,87.86,87.812,3.84107701]
[1772773937358,159.205,87.933,87.812,3.84107701]
[1772773937359,3.72924101,87.859,87.812,3.84107701]
[1772773937662,17.66268286,87.92,87.767,20.507]
[1772773937663,3.00882376,87.87,87.821,3.84107701]
[1772773938157,10.242,87.867,87.821,3.84107701]
[1772773938856,13.97124101,87.867,87.821,3.84107701]
[1772773939458,3.72924101,87.859,87.803,3.84107701]
[1772773939663,3.00882376,87.85,87.803,3.84107701]
[1772773940252,3.00882376,87.85,87.809,14.08907701]
[1772773940556,3.72924101,87.859,87.81,3.84107701]
[1772773940754,3.00882376,87.87,87.811,3.84107701]
[1772773941164,13.24982376,87.87,87.818,10.247]
[1772773941362,13.24982376,87.87,87.81,3.00882376]
[1772773941363,3.72924101,87.869,87.819,3.84107701]
[1772773942063,3.72924101,87.866,87.82,3.00882376]
[1772773942363,3.72924101,87.866,87.821,3.84107701]
[1772773946460,3.00882376,87.87,87.825,3.84107701]
[1772773946461,3.01493326,87.87,87.825,3.84107701]
[1772773946662,13.96924101,87.879,87.825,3.84107701]
[1772773946965,3.72924101,87.878,87.825,3.84107701]
[1772773947164,3.72924101,87.869,87.817,10.248]
[1772773947464,3.72924101,87.869,87.818,3.84107701]
[1772773947658,3.72924101,87.869,87.821,3.84107701]
[1772773948364,3.72924101,87.869,87.821,14.08807701]
[1772773948665,3.72924101,87.869,87.822,3.84107701]
[1772773948865,3.72924101,87.869,87.811,3.84107701]
[1772773949066,3.01493326,87.88,87.826,3.84107701]
[1772773949266,3.01493326,87.88,87.831,3.84107701]
[1772773949461,10.239,87.887,87.84,3.01493326]
[1772773949667,10.239,87.887,87.841,3.64957373]
[1772773950365,3.88600421,87.892,87.841,3.64957373]
[1772773951462,3.88600421,87.892,87.843,3.76832823]
[1772773951763,10.239,87.889,87.843,3.76832823]
[1772773953167,10.24,87.883,87.843,3.76832823]
[1772773953768,3.79480249,87.873,87.83,3.01493326]
[1772773954173,3.79480249,87.873,87.831,3.76832823]
[1772773955173,10.241,87.874,87.831,3.76832823]
[1772773955469,6.80973575,87.88,87.831,3.76832823]
[1772773955774,3.79480249,87.879,87.831,3.76832823]
[1772773956467,14.03580249,87.877,87.831,3.76832823]
[1772773957271,3.79480249,87.877,87.832,3.76832823]
[1772773957866,3.79480249,87.869,87.819,3.76832823]
[1772773958272,3.79480249,87.869,87.821,3.76832823]
[1772773959474,3.79480249,87.869,87.823,3.76832823]
[1772773960477,3.79480249,87.869,87.83,3.01493326]
[1772773962067,8.50827597,87.91,87.861,3.76832823]
[1772773962267,3.79480249,87.949,87.9,6.78326149]
[1772773962570,8.52713324,87.973,87.91,3.01493326]
[1772773962770,3.79480249,87.959,87.911,3.76832823]
[1772773962971,3.79480249,87.959,87.9,3.01493326]
[1772773963678,3.79480249,87.959,87.91,3.01493326]
[1772773963878,3.79480249,87.959,87.92,3.01493326]
[1772773964580,3.79480249,87.977,87.931,3.76832823]
[1772773965682,3.79480249,87.969,87.91,3.01493326]
[1772773967377,3.79480249,87.968,87.91,3.01493326]
[1772773967582,3.79480249,87.968,87.826,28.18720364]
[1772773967583,3.79480249,87.959,87.9,3.01493326]
[1772773968686,3.79480249,87.959,87.91,3.01493326]
[1772773969186,3.79480249,87.959,87.911,3.76832823]
[1772773969686,3.79480249,87.959,87.9,3.01493326]
[1772773971491,3.79480249,87.956,87.9,3.01493326]
[1772773972488,9.23762467,88.007,87.896,3.76832823]
[1772773972489,3.79480249,87.949,87.896,3.76832823]
[1772773972894,3.79480249,87.949,87.9,3.01493326]
[1772773973690,3.79480249,87.964,87.911,3.76832823]
[1772773974695,3.79480249,87.959,87.911,3.76832823]
[1772773974891,3.79480249,87.947,87.91,3.01493326]
[1772773975095,3.79480249,87.947,87.9,3.01493326]
[1772773975696,3.79480249,87.947,87.896,14.00632823]
[1772773976294,3.79480249,87.944,87.896,3.76832823]
[1772773976894,3.79480249,87.939,87.89,3.01493326]
[1772773977595,3.79480249,87.939,87.882,3.76832823]
[1772773978498,3.79480249,87.936,87.882,3.76832823]
[1772773981401,3.73792166,87.932,87.882,3.76832823]
[1772773982403,10.235,87.928,87.882,3.76832823]
[1772773983403,13.97292166,87.928,87.882,3.76832823]
[1772773983602,3.73792166,87.927,87.882,3.76832823]
[1772773983800,3.01493326,87.93,87.881,3.64394599]
[1772773984005,3.01493326,87.93,87.88,3.01493326]
[1772773984006,3.73792166,87.939,87.89,6.65887925]
[1772773984205,3.73792166,87.939,87.891,3.64394599]
[1772773985406,3.73792166,87.939,87.893,13.88294599]
[1772773985604,3.73792166,87.939,87.894,3.64394599]
[1772773986906,3.73792166,87.939,87.896,3.64394599]
[1772773987906,3.73792166,87.939,87.882,3.64394599]
[1772773989504,3.73792166,87.937,87.883,3.64394599]
[1772773989905,3.73792166,87.929,87.883,3.64394599]
[1772773990509,3.73792166,87.929,87.87,6.65887925]
[1772773990708,3.73792166,87.918,87.86,6.65887925]
[1772773990905,9.25660617,87.976,87.86,6.65887925]
[1772773990906,3.73792166,87.909,87.861,3.64394599]
[1772773991714,3.01493326,87.92,87.871,3.64394599]
[1772773992011,3.73792166,87.925,87.871,3.64394599]
[1772773993210,3.73792166,87.925,87.875,3.64394599]
[1772773993410,3.73792166,87.925,87.87,3.01493326]
[1772773993411,6.75285492,87.94,87.881,3.64394599]
[1772773994115,6.75285492,87.94,87.9,13.88194599]
[1772773995405,3.73792166,87.94,87.901,3.64394599]
[1772773998012,10.232,87.947,87.904,3.64394599]
[1772773998716,3.73792166,87.954,87.907,3.64394599]
[1772773999016,3.73792166,87.954,87.91,3.01493326]
[1772773999215,3.73792166,87.954,87.911,3.64394599]
[1772773999813,3.73792166,87.952,87.9,3.64394599]
[1772774000011,3.73792166,87.952,87.901,3.64394599]
[1772774001618,10.233,87.944,87.901,3.64394599]
[1772774001813,3.01493326,87.96,87.904,3.64394599]
[1772774003116,6.75285492,87.96,87.904,3.64394599]
[1772774003313,3.73792166,87.96,87.904,3.64394599]
[1772774003516,10.232,87.955,87.908,3.64394599]
[1772774004107,525.89687082,88.09,87.857,20.486]
[1772774004108,3.01493326,87.98,87.921,3.64394599]
[1772774004418,3.73792166,87.969,87.921,3.64394599]
[1772774005418,13.96792166,87.968,87.921,3.64394599]
[1772774005718,3.73792166,87.967,87.921,3.64394599]
[1772774005921,3.73792166,87.957,87.905,3.64394599]
[1772774006811,3.73792166,87.957,87.9,3.00885524]
[1772774006812,3.73792166,87.957,87.907,3.64394599]
[1772774007015,3.73792166,87.957,87.91,3.00885524]